[Event "Speed Chess Championship 2020"]
[Site "Online"]
[Date "2020.11.08"]
[Round "1.22"]
[White "Abdusattorov, Nodirbek"]
[Black "So, Wesley"]
[Result "0-1"]
[ECO "C67"]
[WhiteElo "2662"]
[BlackElo "2816"]
[Annotator "ChessBase"]
[PlyCount "90"]
[EventDate "2020.10.31"]
[EventType "k.o."]
[SourceTitle "playchess.com"]
[Source "ChessBase"]
[SourceQuality "1"]
[TimeControl "60+1"]

1. e4 {[%emt 0:00:01]} e5 {[%emt 0:00:01]} 2. Nf3 {[%emt 0:00:01]} Nc6 {[%emt 0:00:00]} 3. Bb5 {[%emt 0:00:00]} Nf6 {[%emt 0:00:01]} 4. O-O {[%emt 0:00:02]} Nxe4 {[%emt 0:00:01]} 5. Re1 {[%emt 0:00:00]} Nd6 {[%emt 0:00:01]} 6. Nxe5 {[%emt 0:00:01]} Be7 {[%emt 0:00:00]} 7. Bf1 {[%emt 0:00:01]} Nxe5 {[%emt 0:00:01]} 8. Rxe5 {[%emt 0:00:00]} O-O {[%emt 0:00:00]} 9. d4 {[%emt 0:00:01]} Bf6 {[%emt 0:00:01]} 10. Re1 {[%emt 0:00:01]} Re8 {[%emt 0:00:00]} 11. Rxe8+ {[%emt 0:00:00]} Nxe8 {[%emt 0:00:01]} 12. d5 {[%emt 0:00:00]} d6 {[%emt 0:00:01]} 13. Nd2 {[%emt 0:00:01]} Bg5 {[%emt 0:00:02]} 14. a4 {[%emt 0:00:08]} a5 {[%emt 0:00:02]} 15. Ra3 {[%emt 0:00:02]} Bd7 {[%emt 0:00:01]} 16. g3 {[%emt 0:00:05]} Nf6 {[%emt 0:00:04]} 17. Bg2 {[%emt 0:00:02]} Qe8 {[%emt 0:00:07]} 18. c4 {[%emt 0:00:17]} b6 {[%emt 0:00:04]} 19. h3 {[%emt 0:00:02]} h5 {[%emt 0:00:02]} 20. h4 {[%emt 0:00:01]} Bh6 {[%emt 0:00:02]} 21. b3 {[%emt 0:00:01]} Bg4 {[%emt 0:00:01]} 22. Qf1 {[%emt 0:00:03]} Be2 {[%emt 0:00:01]} 23. Qe1 {[%emt 0:00:01]} Bxc4 {[%emt 0:00:01]} 24. Qxe8+ {[%emt 0:00:07]} Rxe8 {[%emt 0:00:00]} 25. Nxc4 {[%emt 0:00:00]} Re1+ {[%emt 0:00:04]} 26. Kh2 {[%emt 0:00:01]} Rxc1 {[%emt 0:00:01]} 27. Ra2 {[%emt 0:00:01]} Ng4+ {[%emt 0:00:01]} 28. Kh3 {[%emt 0:00:01]} Rc3 {[%emt 0:00:05]} 29. Na3 {[%emt 0:00:14]} Rxb3 {[%emt 0:00:07]} 30. Nb5 {[%emt 0:00:00]} f5 {[%emt 0:00:03]} 31. Nxc7 {[%emt 0:00:02]} f4 {[%emt 0:00:01]} 32. Ne6 {[%emt 0:00:01]} f3 {[%emt 0:00:09]} 33. Bh1 {[%emt 0:00:01]} Ne5 {[%emt 0:00:01]} 34. Nd4 {[%emt 0:00:02]} Rb1 {[%emt 0:00:02]} 35. Bxf3 {[%emt 0:00:02]} Rb4 {[%emt 0:00:01]} 36. Nc6 {[%emt 0:00:01]} Nxf3 {[%emt 0:00:01]} 37. Nxb4 {[%emt 0:00:01]} axb4 {[%emt 0:00:00]} 38. Rb2 {[%emt 0:00:01]} Bd2 {[%emt 0:00:01]} 39. Kg2 {[%emt 0:00:10]} Bc3 {[%emt 0:00:00]} 40. Re2 {[%emt 0:00:01]} b3 {[%emt 0:00:05]} 41. Re8+ {[%emt 0:00:00]} Kf7 {[%emt 0:00:02]} 42. Rb8 {[%emt 0:00:00]} b2 {[%emt 0:00:02]} 43. Rxb6 {[%emt 0:00:02]} Nd2 {[%emt 0:00:00]} 44. a5 {[%emt 0:00:03]} b1=Q {[%emt 0:00:02]} 45. Rxb1 {[%emt 0:00:00]} Nxb1 {[%emt 0:00:00]} 0-1

[Event "Speed Chess Championship 2020"]
[Site "Online"]
[Date "2020.11.08"]
[Round "1.23"]
[White "So, Wesley"]
[Black "Abdusattorov, Nodirbek"]
[Result "1/2-1/2"]
[ECO "B56"]
[WhiteElo "2816"]
[BlackElo "2662"]
[Annotator "ChessBase"]
[PlyCount "36"]
[EventDate "2020.10.31"]
[EventType "k.o."]
[SourceTitle "playchess.com"]
[Source "ChessBase"]
[SourceQuality "1"]
[TimeControl "60+1"]

1. e4 {[%emt 0:00:01]} c5 {[%emt 0:00:01]} 2. Nf3 {[%emt 0:00:02]} d6 {[%emt 0:00:00]} 3. d4 {[%emt 0:00:00]} cxd4 {[%emt 0:00:00]} 4. Nxd4 {[%emt 0:00:00]} e5 {[%emt 0:00:00]} 5. Bb5+ {[%emt 0:00:02]} Bd7 {[%emt 0:00:02]} 6. Bxd7+ {[%emt 0:00:01]} Qxd7 {[%emt 0:00:00]} 7. Nf5 {[%emt 0:00:05]} Nf6 {[%emt 0:00:01]} 8. Nc3 {[%emt 0:00:05]} Nxe4 {[%emt 0:00:00]} 9. Nxg7+ {[%emt 0:00:03]} Bxg7 {[%emt 0:00:00]} 10. Nxe4 {[%emt 0:00:01]} d5 {[%emt 0:00:00]} 11. Bh6 {[%emt 0:00:03]} O-O {[%emt 0:00:05]} 12. Bxg7 {[%emt 0:00:04]} Kxg7 {[%emt 0:00:00]} 13. Qd2 {[%emt 0:00:03]} dxe4 {[%emt 0:00:02]} 14. Qg5+ {[%emt 0:00:01]} Kh8 {[%emt 0:00:01]} 15. Qf6+ {[%emt 0:00:00]} Kg8 {[%emt 0:00:00]} 16. Qg5+ {[%emt 0:00:01]} Kh8 {[%emt 0:00:00]} 17. Qf6+ {[%emt 0:00:43]} Kg8 {[%emt 0:00:00]} 18. Qg5+ {[%emt 0:00:00]} Kh8 {[%emt 0:00:01]} 1/2-1/2

[Event "Speed Chess Championship 2020"]
[Site "Online"]
[Date "2020.11.04"]
[Round "1.23"]
[White "Firouzja, Alireza"]
[Black "Fedoseev, Vladimir"]
[Result "1/2-1/2"]
[ECO "D79"]
[WhiteElo "2749"]
[BlackElo "2676"]
[Annotator "ChessBase"]
[PlyCount "157"]
[EventDate "2020.10.31"]
[EventType "k.o."]
[SourceTitle "playchess.com"]
[Source "ChessBase"]
[SourceQuality "1"]
[TimeControl "60+1"]

1. Nf3 {[%emt 0:00:01]} Nf6 {[%emt 0:00:01]} 2. g3 {[%emt 0:00:00]} g6 {[%emt 0:00:00]} 3. Bg2 {[%emt 0:00:01]} Bg7 {[%emt 0:00:00]} 4. O-O {[%emt 0:00:00]} O-O {[%emt 0:00:01]} 5. d4 {[%emt 0:00:00]} d5 {[%emt 0:00:00]} 6. c4 {[%emt 0:00:00]} c6 {[%emt 0:00:01]} 7. Ne5 {[%emt 0:00:01]} b6 {[%emt 0:00:06]} 8. Nc3 {[%emt 0:00:02]} Bb7 {[%emt 0:00:00]} 9. cxd5 {[%emt 0:00:01]} cxd5 {[%emt 0:00:01]} 10. Bg5 {[%emt 0:00:01]} Nbd7 {[%emt 0:00:03]} 11. Qb3 {[%emt 0:00:06]} h6 {[%emt 0:00:06]} 12. Bf4 {[%emt 0:00:08]} e6 {[%emt 0:00:03]} 13. Rac1 {[%emt 0:00:02]} Nxe5 {[%emt 0:00:03]} 14. Bxe5 {[%emt 0:00:01]} Ba6 {[%emt 0:00:01]} 15. Qa3 {[%emt 0:00:02]} Bb7 {[%emt 0:00:04]} 16. Nb5 {[%emt 0:00:01]} Ne8 {[%emt 0:00:04]} 17. Bxg7 {[%emt 0:00:11]} Kxg7 {[%emt 0:00:01]} 18. Qb4 {[%emt 0:00:07]} a6 {[%emt 0:00:06]} 19. Nc3 {[%emt 0:00:01]} Qd6 {[%emt 0:00:02]} 20. Qb3 {[%emt 0:00:01]} Nf6 {[%emt 0:00:03]} 21. Rcd1 {[%emt 0:00:03]} Rfc8 {[%emt 0:00:02]} 22. f3 {[%emt 0:00:01]} b5 {[%emt 0:00:04]} 23. e4 {[%emt 0:00:01]} Qb6 {[%emt 0:00:01]} 24. e5 {[%emt 0:00:03]} Nd7 {[%emt 0:00:01]} 25. f4 {[%emt 0:00:05]} Rc4 {[%emt 0:00:01]} 26. Ne2 {[%emt 0:00:01]} Rac8 {[%emt 0:00:01]} 27. g4 {[%emt 0:00:01]} f5 {[%emt 0:00:03]} 28. gxf5 {[%emt 0:00:03]} exf5 {[%emt 0:00:01]} 29. Qe3 {[%emt 0:00:05]} Nf8 {[%emt 0:00:01]} 30. h4 {[%emt 0:00:04]} h5 {[%emt 0:00:02]} 31. Nc3 {[%emt 0:00:02]} Ne6 {[%emt 0:00:06]} 32. Bxd5 {[%emt 0:00:05]} Bxd5 {[%emt 0:00:03]} 33. Nxd5 {[%emt 0:00:00]} Qd8 {[%emt 0:00:01]} 34. Nf6 {[%emt 0:00:02]} Rxd4 {[%emt 0:00:01]} 35. Rxd4 {[%emt 0:00:01]} Qxd4 {[%emt 0:00:00]} 36. Qxd4 {[%emt 0:00:02]} Nxd4 {[%emt 0:00:01]} 37. Rd1 {[%emt 0:00:01]} Ne2+ {[%emt 0:00:04]} 38. Kf2 {[%emt 0:00:01]} Nxf4 {[%emt 0:00:01]} 39. Rd7+ {[%emt 0:00:01]} Kf8 {[%emt 0:00:00]} 40. Nh7+ {[%emt 0:00:01]} Kg8 {[%emt 0:00:01]} 41. Nf6+ {[%emt 0:00:04]} Kf8 {[%emt 0:00:01]} 42. Kf3 {[%emt 0:00:02]} Ne6 {[%emt 0:00:01]} 43. Rd6 {[%emt 0:00:00]} Kf7 {[%emt 0:00:02]} 44. Rxa6 {[%emt 0:00:01]} Rc4 {[%emt 0:00:02]} 45. Ra7+ {[%emt 0:00:01]} Kf8 {[%emt 0:00:01]} 46. Ra8+ {[%emt 0:00:01]} Kf7 {[%emt 0:00:00]} 47. Ra7+ {[%emt 0:00:01]} Kf8 {[%emt 0:00:01]} 48. Kg3 {[%emt 0:00:03]} Rc2 {[%emt 0:00:06]} 49. b3 {[%emt 0:00:00]} Rc3+ {[%emt 0:00:01]} 50. Kf2 {[%emt 0:00:01]} b4 {[%emt 0:00:02]} 51. Rb7 {[%emt 0:00:02]} Rc2+ {[%emt 0:00:01]} 52. Kg3 {[%emt 0:00:01]} Rxa2 {[%emt 0:00:01]} 53. Rxb4 {[%emt 0:00:00]} Rd2 {[%emt 0:00:00]} 54. Rb7 {[%emt 0:00:02]} Rd3+ {[%emt 0:00:02]} 55. Kf2 {[%emt 0:00:01]} Nc5 {[%emt 0:00:02]} 56. Rc7 {[%emt 0:00:02]} Ne4+ {[%emt 0:00:02]} 57. Nxe4 {[%emt 0:00:02]} fxe4 {[%emt 0:00:00]} 58. b4 {[%emt 0:00:00]} Rb3 {[%emt 0:00:08]} 59. Rb7 {[%emt 0:00:01]} Rh3 {[%emt 0:00:03]} 60. b5 {[%emt 0:00:01]} Rxh4 {[%emt 0:00:01]} 61. b6 {[%emt 0:00:02]} Rh2+ {[%emt 0:00:00]} 62. Ke3 {[%emt 0:00:01]} Rb2 {[%emt 0:00:01]} 63. Kxe4 {[%emt 0:00:01]} h4 {[%emt 0:00:01]} 64. Kd5 {[%emt 0:00:03]} h3 {[%emt 0:00:00]} 65. Kc6 {[%emt 0:00:00]} Kg8 {[%emt 0:00:02]} 66. Rb8+ {[%emt 0:00:01]} Kg7 {[%emt 0:00:01]} 67. Ra8 {[%emt 0:00:01]} Rb1 {[%emt 0:00:01]} 68. Ra2 {[%emt 0:00:00]} g5 {[%emt 0:00:00]} 69. e6 {[%emt 0:00:01]} Kf6 {[%emt 0:00:01]} 70. Re2 {[%emt 0:00:01]} Ke7 {[%emt 0:00:01]} 71. Re5 {[%emt 0:00:01]} g4 {[%emt 0:00:01]} 72. Rh5 {[%emt 0:00:01]} Kxe6 {[%emt 0:00:01]} 73. b7 {[%emt 0:00:01]} Kf6 {[%emt 0:00:01]} 74. Rb5 {[%emt 0:00:01]} Rxb5 {[%emt 0:00:01]} 75. Kxb5 {[%emt 0:00:01]} h2 {[%emt 0:00:01]} 76. b8=Q {[%emt 0:00:02]} h1=Q {[%emt 0:00:00]} 77. Qf4+ {[%emt 0:00:00]} Ke6 {[%emt 0:00:00]} 78. Qxg4+ {[%emt 0:00:01]} Ke7 {[%emt 0:00:01]} 79. Qg5+ {[%emt 0:00:00]} 1/2-1/2

[Event "Speed Chess Championship 2020"]
[Site "Online"]
[Date "2020.11.15"]
[Round "1.23"]
[White "Duda, Jan-Krzysztof"]
[Black "Caruana, Fabiano"]
[Result "1-0"]
[ECO "E63"]
[WhiteElo "2743"]
[BlackElo "2823"]
[Annotator "ChessBase"]
[PlyCount "67"]
[EventDate "2020.10.31"]
[EventType "k.o."]
[EventCountry "NET"]
[SourceTitle "playchess.com"]
[Source "ChessBase"]
[SourceQuality "1"]
[TimeControl "60+1"]

1. d4 {[%emt 0:00:01]} Nf6 {[%emt 0:00:01]} 2. c4 {[%emt 0:00:00]} g6 {[%emt 0:00:00]} 3. g3 {[%emt 0:00:00]} Bg7 {[%emt 0:00:00]} 4. Bg2 {[%emt 0:00:01]} d6 {[%emt 0:00:00]} 5. Nf3 {[%emt 0:00:00]} O-O {[%emt 0:00:00]} 6. O-O {[%emt 0:00:00]} Nc6 {[%emt 0:00:01]} 7. Nc3 {[%emt 0:00:02]} a6 {[%emt 0:00:00]} 8. b3 {[%emt 0:00:02]} Rb8 {[%emt 0:00:01]} 9. Bb2 {[%emt 0:00:07]} b5 {[%emt 0:00:01]} 10. cxb5 {[%emt 0:00:01]} axb5 {[%emt 0:00:00]} 11. Rc1 {[%emt 0:00:02]} Bd7 {[%emt 0:00:01]} 12. e3 {[%emt 0:00:01]} e6 {[%emt 0:00:01]} 13. Qe2 {[%emt 0:00:02]} Ne7 {[%emt 0:00:01]} 14. b4 {[%emt 0:00:02]} Ned5 {[%emt 0:00:04]} 15. a3 {[%emt 0:00:03]} c6 {[%emt 0:00:02]} 16. e4 {[%emt 0:00:06]} Nb6 {[%emt 0:00:02]} 17. e5 {[%emt 0:00:01]} Ne8 {[%emt 0:00:04]} 18. Ne4 {[%emt 0:00:01]} d5 {[%emt 0:00:02]} 19. Nc5 {[%emt 0:00:01]} Nc4 {[%emt 0:00:01]} 20. Rc3 {[%emt 0:00:00]} Nc7 {[%emt 0:00:02]} 21. Bc1 {[%emt 0:00:01]} Ra8 {[%emt 0:00:01]} 22. h4 {[%emt 0:00:00]} h6 {[%emt 0:00:04]} 23. Nh2 {[%emt 0:00:03]} Na6 {[%emt 0:00:02]} 24. Nxd7 {[%emt 0:00:07]} Qxd7 {[%emt 0:00:01]} 25. Ng4 {[%emt 0:00:00]} h5 {[%emt 0:00:01]} 26. Nf6+ {[%emt 0:00:00]} Bxf6 {[%emt 0:00:01]} 27. exf6 {[%emt 0:00:00]} Rfe8 {[%emt 0:00:08]} 28. g4 {[%emt 0:00:10]} e5 {[%emt 0:00:02]} 29. Rg3 {[%emt 0:00:11]} exd4 {[%emt 0:00:04]} 30. Qd1 {[%emt 0:00:00]} hxg4 {[%emt 0:00:04]} 31. Rxg4 {[%emt 0:00:02]} Nc7 {[%emt 0:00:09]} 32. h5 {[%emt 0:00:02]} Qf5 {[%emt 0:00:05]} 33. hxg6 {[%emt 0:00:02]} fxg6 {[%emt 0:00:00]} 34. Rf4 {[%emt 0:00:00]} 1-0

[Event "Speed Chess Championship 2020"]
[Site "Online"]
[Date "2020.11.12"]
[Round "1.23"]
[White "Nakamura, Hikaru"]
[Black "Martirosyan, Haik M."]
[Result "1-0"]
[ECO "D04"]
[WhiteElo "2736"]
[BlackElo "2622"]
[Annotator "ChessBase"]
[PlyCount "47"]
[EventDate "2020.10.31"]
[EventType "k.o."]
[SourceTitle "playchess.com"]
[Source "ChessBase"]
[SourceQuality "1"]
[TimeControl "60+1"]

1. b3 {[%emt 0:00:01]} Nf6 {[%emt 0:00:01]} 2. Bb2 {[%emt 0:00:00]} g6 {[%emt 0:00:00]} 3. e3 {[%emt 0:00:00]} Bg7 {[%emt 0:00:01]} 4. Nf3 {[%emt 0:00:00]} O-O {[%emt 0:00:01]} 5. d4 {[%emt 0:00:00]} d5 {[%emt 0:00:01]} 6. Be2 {[%emt 0:00:01]} b6 {[%emt 0:00:01]} 7. O-O {[%emt 0:00:00]} Bb7 {[%emt 0:00:00]} 8. Nbd2 {[%emt 0:00:00]} c5 {[%emt 0:00:01]} 9. dxc5 {[%emt 0:00:01]} bxc5 {[%emt 0:00:00]} 10. c4 {[%emt 0:00:00]} e6 {[%emt 0:00:01]} 11. cxd5 {[%emt 0:00:01]} exd5 {[%emt 0:00:00]} 12. Rc1 {[%emt 0:00:00]} Nbd7 {[%emt 0:00:00]} 13. Ne5 {[%emt 0:00:01]} Rc8 {[%emt 0:00:04]} 14. Nxd7 {[%emt 0:00:01]} Qxd7 {[%emt 0:00:00]} 15. Bxf6 {[%emt 0:00:00]} Bxf6 {[%emt 0:00:03]} 16. Bg4 {[%emt 0:00:01]} Qe7 {[%emt 0:00:01]} 17. Bxc8 {[%emt 0:00:00]} Rxc8 {[%emt 0:00:00]} 18. Nf3 {[%emt 0:00:01]} Kg7 {[%emt 0:00:02]} 19. Re1 {[%emt 0:00:00]} Qd6 {[%emt 0:00:01]} 20. e4 {[%emt 0:00:01]} Re8 {[%emt 0:00:13]} 21. e5 {[%emt 0:00:02]} Bxe5 {[%emt 0:00:01]} 22. Nxe5 {[%emt 0:00:01]} Rxe5 {[%emt 0:00:01]} 23. Rxe5 {[%emt 0:00:00]} Qxe5 {[%emt 0:00:00]} 24. Rxc5 {[%emt 0:00:00]} 1-0

[Event "Speed Chess Championship 2020"]
[Site "Online"]
[Date "2020.11.16"]
[Round "1.23"]
[White "Artemiev, Vladislav"]
[Black "Giri, Anish"]
[Result "1/2-1/2"]
[ECO "A11"]
[WhiteElo "2708"]
[BlackElo "2764"]
[Annotator "ChessBase"]
[PlyCount "133"]
[EventDate "2020.10.31"]
[EventType "k.o."]
[EventCountry "NET"]
[SourceTitle "playchess.com"]
[Source "ChessBase"]
[SourceQuality "1"]
[TimeControl "60+1"]

1. Nf3 {[%emt 0:00:01]} d5 {[%emt 0:00:01]} 2. e3 {[%emt 0:00:00]} Nf6 {[%emt 0:00:01]} 3. c4 {[%emt 0:00:01]} c6 {[%emt 0:00:01]} 4. Qc2 {[%emt 0:00:01]} g6 {[%emt 0:00:02]} 5. b3 {[%emt 0:00:01]} Bg7 {[%emt 0:00:01]} 6. Bb2 {[%emt 0:00:00]} O-O {[%emt 0:00:00]} 7. Be2 {[%emt 0:00:01]} Bg4 {[%emt 0:00:03]} 8. O-O {[%emt 0:00:01]} Nbd7 {[%emt 0:00:01]} 9. Nc3 {[%emt 0:00:06]} e5 {[%emt 0:00:03]} 10. h3 {[%emt 0:00:01]} Bf5 {[%emt 0:00:05]} 11. d3 {[%emt 0:00:02]} Re8 {[%emt 0:00:02]} 12. cxd5 {[%emt 0:00:06]} cxd5 {[%emt 0:00:01]} 13. e4 {[%emt 0:00:02]} Be6 {[%emt 0:00:01]} 14. Ng5 {[%emt 0:00:01]} d4 {[%emt 0:00:03]} 15. Nb5 {[%emt 0:00:04]} Rc8 {[%emt 0:00:06]} 16. Qd2 {[%emt 0:00:02]} Qb6 {[%emt 0:00:02]} 17. Nxe6 {[%emt 0:00:03]} Rxe6 {[%emt 0:00:03]} 18. Na3 {[%emt 0:00:00]} Rec6 {[%emt 0:00:12]} 19. Rac1 {[%emt 0:00:01]} Bf8 {[%emt 0:00:05]} 20. Rxc6 {[%emt 0:00:01]} Rxc6 {[%emt 0:00:02]} 21. Rc1 {[%emt 0:00:01]} Qa6 {[%emt 0:00:08]} 22. Rxc6 {[%emt 0:00:02]} Qxc6 {[%emt 0:00:00]} 23. Nc2 {[%emt 0:00:08]} a5 {[%emt 0:00:01]} 24. Bd1 {[%emt 0:00:05]} b6 {[%emt 0:00:02]} 25. Qc1 {[%emt 0:00:07]} Nc5 {[%emt 0:00:01]} 26. Ne1 {[%emt 0:00:01]} Qb5 {[%emt 0:00:01]} 27. Qc2 {[%emt 0:00:02]} h5 {[%emt 0:00:02]} 28. Bc1 {[%emt 0:00:04]} Kh7 {[%emt 0:00:01]} 29. f4 {[%emt 0:00:04]} Nfd7 {[%emt 0:00:01]} 30. f5 {[%emt 0:00:01]} Bh6 {[%emt 0:00:02]} 31. Bxh6 {[%emt 0:00:02]} Kxh6 {[%emt 0:00:00]} 32. fxg6 {[%emt 0:00:01]} fxg6 {[%emt 0:00:01]} 33. g4 {[%emt 0:00:02]} Qb4 {[%emt 0:00:02]} 34. Kf2 {[%emt 0:00:04]} h4 {[%emt 0:00:04]} 35. Be2 {[%emt 0:00:08]} g5 {[%emt 0:00:02]} 36. Nf3 {[%emt 0:00:03]} Qc3 {[%emt 0:00:01]} 37. Qxc3 {[%emt 0:00:01]} dxc3 {[%emt 0:00:00]} 38. Ke3 {[%emt 0:00:00]} Ne6 {[%emt 0:00:03]} 39. Bd1 {[%emt 0:00:03]} b5 {[%emt 0:00:02]} 40. d4 {[%emt 0:00:00]} Nf4 {[%emt 0:00:01]} 41. dxe5 {[%emt 0:00:02]} Nxh3 {[%emt 0:00:01]} 42. e6 {[%emt 0:00:01]} Nf6 {[%emt 0:00:01]} 43. e7 {[%emt 0:00:00]} Nf4 {[%emt 0:00:01]} 44. e5 {[%emt 0:00:02]} N6d5+ {[%emt 0:00:02]} 45. Kd4 {[%emt 0:00:00]} Nxe7 {[%emt 0:00:00]} 46. Kxc3 {[%emt 0:00:01]} h3 {[%emt 0:00:02]} 47. Kd4 {[%emt 0:00:00]} Kg7 {[%emt 0:00:01]} 48. Nxg5 {[%emt 0:00:02]} h2 {[%emt 0:00:01]} 49. Bf3 {[%emt 0:00:01]} Kg6 {[%emt 0:00:01]} 50. Ne4 {[%emt 0:00:01]} Ne6+ {[%emt 0:00:01]} 51. Ke3 {[%emt 0:00:01]} Nd5+ {[%emt 0:00:00]} 52. Kf2 {[%emt 0:00:00]} Ndf4 {[%emt 0:00:01]} 53. Kg3 {[%emt 0:00:02]} Nd3 {[%emt 0:00:00]} 54. Kxh2 {[%emt 0:00:00]} Nxe5 {[%emt 0:00:00]} 55. Kg3 {[%emt 0:00:00]} Nd4 {[%emt 0:00:02]} 56. Nc5 {[%emt 0:00:02]} Ndxf3 {[%emt 0:00:02]} 57. Kf4 {[%emt 0:00:00]} Kf6 {[%emt 0:00:01]} 58. Nb7 {[%emt 0:00:01]} a4 {[%emt 0:00:02]} 59. bxa4 {[%emt 0:00:01]} bxa4 {[%emt 0:00:00]} 60. a3 {[%emt 0:00:00]} Ng5 {[%emt 0:00:01]} 61. Ke3 {[%emt 0:00:02]} Ne6 {[%emt 0:00:01]} 62. Ke4 {[%emt 0:00:01]} Nxg4 {[%emt 0:00:02]} 63. Kd5 {[%emt 0:00:02]} Ne3+ {[%emt 0:00:01]} 64. Kc6 {[%emt 0:00:00]} Nc2 {[%emt 0:00:01]} 65. Kb5 {[%emt 0:00:01]} Nxa3+ {[%emt 0:00:02]} 66. Kxa4 {[%emt 0:00:00]} Nc4 {[%emt 0:00:00]} 67. Kb4 {[%emt 0:00:00]} 1/2-1/2

[Event "Speed Chess Championship 2020"]
[Site "Online"]
[Date "2020.11.11"]
[Round "1.24"]
[White "Aronian, Levon"]
[Black "Nepomniachtchi, Ian"]
[Result "0-1"]
[ECO "B13"]
[WhiteElo "2781"]
[BlackElo "2784"]
[Annotator "ChessBase"]
[PlyCount "66"]
[EventDate "2020.10.31"]
[EventType "k.o."]
[SourceTitle "playchess.com"]
[Source "ChessBase"]
[SourceQuality "1"]
[TimeControl "60+1"]

1. e4 {[%emt 0:00:01]} c6 {[%emt 0:00:01]} 2. d4 {[%emt 0:00:01]} d5 {[%emt 0:00:00]} 3. exd5 {[%emt 0:00:02]} cxd5 {[%emt 0:00:00]} 4. Bd3 {[%emt 0:00:00]} Nc6 {[%emt 0:00:00]} 5. c3 {[%emt 0:00:01]} g6 {[%emt 0:00:00]} 6. Nf3 {[%emt 0:00:01]} Qc7 {[%emt 0:00:01]} 7. O-O {[%emt 0:00:02]} Nf6 {[%emt 0:00:00]} 8. Re1 {[%emt 0:00:01]} Bf5 {[%emt 0:00:00]} 9. Bf1 {[%emt 0:00:02]} h5 {[%emt 0:00:02]} 10. Nbd2 {[%emt 0:00:04]} e6 {[%emt 0:00:01]} 11. Ne5 {[%emt 0:00:03]} Bd6 {[%emt 0:00:01]} 12. Ndf3 {[%emt 0:00:02]} Ne4 {[%emt 0:00:00]} 13. c4 {[%emt 0:00:11]} f6 {[%emt 0:00:02]} 14. cxd5 {[%emt 0:00:01]} exd5 {[%emt 0:00:00]} 15. Nxc6 {[%emt 0:00:01]} bxc6 {[%emt 0:00:00]} 16. Bd2 {[%emt 0:00:09]} g5 {[%emt 0:00:01]} 17. Rc1 {[%emt 0:00:03]} g4 {[%emt 0:00:05]} 18. Nh4 {[%emt 0:00:01]} Bxh2+ {[%emt 0:00:01]} 19. Kh1 {[%emt 0:00:01]} Kf7 {[%emt 0:00:01]} 20. Be3 {[%emt 0:00:10]} Be6 {[%emt 0:00:05]} 21. g3 {[%emt 0:00:12]} Bxg3 {[%emt 0:00:01]} 22. fxg3 {[%emt 0:00:01]} Qxg3 {[%emt 0:00:00]} 23. Ng2 {[%emt 0:00:04]} Qh3+ {[%emt 0:00:01]} 24. Kg1 {[%emt 0:00:01]} g3 {[%emt 0:00:00]} 25. Be2 {[%emt 0:00:02]} Qh2+ {[%emt 0:00:01]} 26. Kf1 {[%emt 0:00:01]} Nf2 {[%emt 0:00:03]} 27. Bxf2 {[%emt 0:00:01]} gxf2 {[%emt 0:00:01]} 28. Kxf2 {[%emt 0:00:01]} Rhg8 {[%emt 0:00:00]} 29. Bf3 {[%emt 0:00:02]} Bh3 {[%emt 0:00:00]} 30. Rg1 {[%emt 0:00:00]} Qg3+ {[%emt 0:00:02]} 31. Kf1 {[%emt 0:00:01]} Rae8 {[%emt 0:00:00]} 32. Rxc6 {[%emt 0:00:02]} Rg5 {[%emt 0:00:07]} 33. Rc3 {[%emt 0:00:02]} Rf5 {[%emt 0:00:01]} 0-1

[Event "Speed Chess Championship 2020"]
[Site "Online"]
[Date "2020.11.16"]
[Round "1.24"]
[White "Giri, Anish"]
[Black "Artemiev, Vladislav"]
[Result "0-1"]
[ECO "C50"]
[WhiteElo "2764"]
[BlackElo "2708"]
[Annotator "ChessBase"]
[PlyCount "83"]
[EventDate "2020.10.31"]
[EventType "k.o."]
[EventCountry "NET"]
[SourceTitle "playchess.com"]
[Source "ChessBase"]
[SourceQuality "1"]
[TimeControl "60+1"]

1. e4 {[%emt 0:00:01]} e5 {[%emt 0:00:01]} 2. Nf3 {[%emt 0:00:00]} Nc6 {[%emt 0:00:00]} 3. Bc4 {[%emt 0:00:01]} Be7 {[%emt 0:00:01]} 4. d4 {[%emt 0:00:02]} d6 {[%emt 0:00:00]} 5. O-O {[%emt 0:00:01]} Bg4 {[%emt 0:00:02]} 6. c3 {[%emt 0:00:03]} Nf6 {[%emt 0:00:02]} 7. d5 {[%emt 0:00:02]} Nb8 {[%emt 0:00:01]} 8. Nbd2 {[%emt 0:00:01]} O-O {[%emt 0:00:02]} 9. h3 {[%emt 0:00:01]} Bh5 {[%emt 0:00:02]} 10. Be2 {[%emt 0:00:01]} Nbd7 {[%emt 0:00:02]} 11. Re1 {[%emt 0:00:06]} c6 {[%emt 0:00:03]} 12. dxc6 {[%emt 0:00:02]} bxc6 {[%emt 0:00:01]} 13. Nh4 {[%emt 0:00:02]} Bxe2 {[%emt 0:00:01]} 14. Qxe2 {[%emt 0:00:01]} g6 {[%emt 0:00:01]} 15. Nhf3 {[%emt 0:00:01]} Nc5 {[%emt 0:00:00]} 16. c4 {[%emt 0:00:01]} a5 {[%emt 0:00:02]} 17. b3 {[%emt 0:00:01]} Qb6 {[%emt 0:00:00]} 18. Rb1 {[%emt 0:00:01]} Rfb8 {[%emt 0:00:05]} 19. Ba3 {[%emt 0:00:04]} Nfd7 {[%emt 0:00:04]} 20. Red1 {[%emt 0:00:03]} Ne6 {[%emt 0:00:03]} 21. Nf1 {[%emt 0:00:00]} Qc7 {[%emt 0:00:03]} 22. Ne3 {[%emt 0:00:02]} Ndc5 {[%emt 0:00:02]} 23. Qc2 {[%emt 0:00:01]} h5 {[%emt 0:00:01]} 24. g3 {[%emt 0:00:01]} Bf8 {[%emt 0:00:02]} 25. Bc1 {[%emt 0:00:04]} Rb7 {[%emt 0:00:03]} 26. Bd2 {[%emt 0:00:04]} Nd4 {[%emt 0:00:02]} 27. Nxd4 {[%emt 0:00:02]} exd4 {[%emt 0:00:00]} 28. Ng2 {[%emt 0:00:01]} Re8 {[%emt 0:00:01]} 29. Re1 {[%emt 0:00:01]} d3 {[%emt 0:00:05]} 30. Qc3 {[%emt 0:00:01]} Bg7 {[%emt 0:00:00]} 31. Qxa5 {[%emt 0:00:00]} Qxa5 {[%emt 0:00:01]} 32. Bxa5 {[%emt 0:00:00]} Ra7 {[%emt 0:00:01]} 33. b4 {[%emt 0:00:03]} Nxe4 {[%emt 0:00:01]} 34. Rbd1 {[%emt 0:00:02]} Bc3 {[%emt 0:00:06]} 35. Re3 {[%emt 0:00:02]} Bd4 {[%emt 0:00:01]} 36. Rexd3 {[%emt 0:00:03]} Bxf2+ {[%emt 0:00:00]} 37. Kh2 {[%emt 0:00:01]} c5 {[%emt 0:00:01]} 38. a3 {[%emt 0:00:02]} Bd4 {[%emt 0:00:01]} 39. Re1 {[%emt 0:00:03]} Re5 {[%emt 0:00:02]} 40. Nf4 {[%emt 0:00:03]} Nf2 {[%emt 0:00:02]} 41. Rxe5 {[%emt 0:00:03]} dxe5 {[%emt 0:00:01]} 42. Rd1 0-1